bitfinex/quotes_BTCUSD_20250903
["timestamp","ask_amount","ask_price","bid_price","bid_amount"]
[1756894010197,1.5550651,111390.0,111380.0,0.00499001]
[1756894010400,1.7078251,111390.0,111380.0,0.00499001]
[1756894012495,1.5550651,111390.0,111380.0,0.00499001]
[1756894012702,1.7077451,111390.0,111380.0,0.00499001]
[1756894015134,1.79535645,111390.0,111380.0,0.00499001]
[1756894015354,1.7097351,111390.0,111380.0,0.00499001]
[1756894015904,0.8831237,111390.0,111380.0,0.00499001]
[1756894016116,1.74911445,111390.0,111380.0,0.00499001]
[1756894016346,1.59643445,111390.0,111380.0,0.00499001]
[1756894016568,1.7077051,111390.0,111380.0,0.00499001]
[1756894016992,0.8830837,111390.0,111380.0,0.00499001]
[1756894017209,1.68676628,111390.0,111380.0,0.00499001]
[1756894019992,1.68875628,111390.0,111380.0,0.00499001]
[1756894020210,1.69200628,111390.0,111380.0,1e-08]
[1756894020647,1.68875628,111390.0,111380.0,0.00204001]
[1756894020871,1.68875628,111390.0,111380.0,0.00499001]
[1756894021120,1.68875628,111390.0,111380.0,0.00204001]
[1756894022133,1.53412628,111390.0,111380.0,0.00499001]
[1756894022354,0.70950488,111390.0,111380.0,0.00499001]
[1756894022576,1.68720628,111390.0,111380.0,0.00499001]
[1756894023040,1.02989959,111390.0,111380.0,0.00499001]
[1756894023260,1.18293959,111390.0,111380.0,0.00499001]
[1756894023868,0.96085959,111390.0,111380.0,0.00499001]
[1756894024073,1.11385959,111390.0,111380.0,0.00499001]
[1756894026553,0.96085959,111390.0,111380.0,0.00499001]
[1756894026794,1.11377959,111390.0,111380.0,0.00499001]
[1756894027048,0.18154933,111390.0,111380.0,0.00499001]
[1756894027252,0.18154933,111390.0,111380.0,0.18455546]
[1756894027464,0.59386003,111390.0,111380.0,0.18455546]
[1756894028743,0.002,111390.0,111380.0,0.18455546]
[1756894028965,0.002,111390.0,111380.0,0.77336616]
[1756894029188,0.002,111390.0,111380.0,0.36105546]
[1756894029842,0.001,111390.0,111380.0,0.36105546]
[1756894030021,0.001,111390.0,111380.0,0.36405546]
[1756894030432,0.59193043,111400.0,111390.0,0.17954933]
[1756894030639,0.59193043,111400.0,111390.0,0.00514]
[1756894031005,0.59193043,111400.0,111390.0,0.18468933]
[1756894031416,0.41239437,111400.0,111390.0,0.18468933]
[1756894031686,8.367e-05,111400.0,111390.0,0.18568933]
[1756894031812,0.59192758,111400.0,111390.0,0.18568933]
[1756894032031,0.59192758,111400.0,111390.0,0.33860933]
[1756894032256,0.59192758,111400.0,111390.0,0.33960933]
[1756894034056,0.59192758,111400.0,111390.0,0.16006]
[1756894034262,0.59192758,111400.0,111390.0,0.33960933]
[1756894038095,8.367e-05,111400.0,111390.0,0.33960933]
[1756894038318,8.367e-05,111400.0,111390.0,0.75192003]
[1756894038743,8.367e-05,111400.0,111390.0,0.33960933]
[1756894041728,8.367e-05,111400.0,111390.0,0.84383602]
[1756894043079,8.367e-05,111400.0,111390.0,0.84359602]
[1756894043292,8.367e-05,111400.0,111390.0,0.43124532]
[1756894044910,0.17961688,111400.0,111390.0,0.27860532]
[1756894045119,0.41239437,111400.0,111390.0,0.43124532]
[1756894046722,8.367e-05,111400.0,111390.0,0.43124532]
[1756894050034,0.17961688,111400.0,111390.0,0.43116532]
[1756894050244,0.18175688,111400.0,111390.0,0.27860532]
[1756894050464,0.73411189,111400.0,111390.0,0.42814532]
[1756894052637,0.55457868,111400.0,111390.0,0.42814532]
[1756894052814,0.55159868,111400.0,111390.0,0.42814532]
[1756894053027,8.367e-05,111400.0,111390.0,0.43116532]
[1756894059114,8.367e-05,111400.0,111390.0,0.27860532]
[1756894059308,8.367e-05,111400.0,111390.0,0.43116532]
[1756894059513,8.367e-05,111400.0,111390.0,0.27860532]
[1756894059514,0.18172688,111400.0,111390.0,0.27860532]
[1756894059715,0.18172688,111400.0,111390.0,0.42814532]
[1756894060330,0.00219367,111400.0,111390.0,0.42814532]
[1756894061532,8.367e-05,111400.0,111390.0,0.43113532]
[1756894064847,0.18172688,111400.0,111390.0,0.43113532]
[1756894065057,0.00219367,111400.0,111390.0,0.43113532]
[1756894065700,0.00219367,111400.0,111390.0,0.42814532]
[1756894066626,0.00219367,111400.0,111390.0,0.43113532]
[1756894066923,0.00219367,111400.0,111390.0,0.27857532]
[1756894066924,0.18172688,111400.0,111390.0,0.27857532]
[1756894067141,0.73433189,111400.0,111390.0,0.33406933]
[1756894068147,0.73433189,111400.0,111390.0,0.18154933]
[1756894068373,0.73433189,111400.0,111390.0,0.33406933]
[1756894068578,0.73433189,111400.0,111390.0,0.15452]
[1756894068752,0.73433189,111400.0,111390.0,0.002]
[1756894068967,0.73433189,111400.0,111390.0,0.15452]
[1756894070493,0.73433189,111400.0,111390.0,0.002]
[1756894070685,0.73433189,111400.0,111390.0,0.15452]
[1756894072192,0.73110189,111400.0,111390.0,0.15656]
[1756894072392,0.18172688,111400.0,111390.0,0.33610933]
[1756894072607,0.73110189,111400.0,111390.0,0.33610933]
[1756894074861,8.367e-05,111400.0,111390.0,0.33610933]
[1756894075063,0.17961688,111400.0,111390.0,0.33909933]
[1756894080280,8.367e-05,111400.0,111390.0,0.33909933]
[1756894081309,8.367e-05,111400.0,111390.0,0.43101532]
[1756894081518,8.367e-05,111400.0,111390.0,0.98039033]
[1756894081721,8.367e-05,111400.0,111390.0,0.43101532]
[1756894086306,8.367e-05,111400.0,111390.0,0.98039033]
[1756894089375,8.367e-05,111400.0,111390.0,1.00737238]
[1756894089584,8.367e-05,111400.0,111390.0,1.02487939]
[1756894089997,8.367e-05,111400.0,111390.0,1.36487939]
[1756894090665,9.68e-06,111400.0,111390.0,1.36487939]
[1756894090846,9.68e-06,111400.0,111390.0,1.38581821]
[1756894091053,9.68e-06,111400.0,111390.0,1.40892821]
[1756894091200,9.68e-06,111400.0,111390.0,1.48900698]
[1756894092830,9.68e-06,111400.0,111390.0,1.48800698]
[1756894093245,9.68e-06,111400.0,111390.0,1.49000698]
[1756894093779,9.68e-06,111400.0,111390.0,1.48800698]
[1756894094006,9.68e-06,111400.0,111390.0,1.48700698]
[1756894094210,9.68e-06,111400.0,111390.0,1.88700698]
[1756894094612,9.68e-06,111400.0,111390.0,1.89300698]
[1756894096632,9.68e-06,111400.0,111390.0,1.34363197]
[1756894096841,9.68e-06,111400.0,111390.0,1.89700698]
[1756894100552,0.00317,111430.0,111420.0,0.17950098]
[1756894100768,0.00321669,111430.0,111420.0,0.49285697]
[1756894100944,0.00517669,111430.0,111420.0,0.49285697]
[1756894101873,0.00517669,111430.0,111420.0,0.49485697]
[1756894102221,0.00517669,111430.0,111420.0,0.34241697]
[1756894102429,0.00517669,111430.0,111420.0,0.49481697]
[1756894102987,0.00517669,111430.0,111420.0,0.49581697]
[1756894106374,0.00200669,111430.0,111420.0,0.49797697]
[1756894106672,4.669e-05,111430.0,111420.0,1.05051198]
[1756894106902,0.00200669,111430.0,111420.0,1.05051198]
[1756894107135,4.669e-05,111430.0,111420.0,1.05051198]
[1756894107600,0.00200669,111430.0,111420.0,1.07748635]
[1756894107813,0.00200669,111430.0,111420.0,1.07432635]
[1756894108456,0.00200669,111430.0,111420.0,1.07748635]
[1756894109216,0.00200669,111430.0,111420.0,0.37255134]
[1756894109466,0.00200669,111430.0,111420.0,0.52495134]
[1756894109657,0.00200669,111430.0,111420.0,0.93671125]
[1756894111811,0.00200669,111430.0,111420.0,0.93667125]
[1756894112680,0.18466156,111430.0,111420.0,0.37039134]
[1756894112912,0.59642147,111430.0,111420.0,0.49577697]
[1756894113178,0.59642147,111430.0,111420.0,0.40386098]
[1756894115142,0.59642147,111430.0,111420.0,0.22436]
[1756894115388,0.59642147,111430.0,111420.0,0.40386098]
[1756894115650,0.59642147,111430.0,111420.0,0.072]
[1756894115873,0.59642147,111430.0,111420.0,0.15536]
[1756894116764,1.00818138,111430.0,111420.0,0.002]
[1756894116990,1.00818138,111430.0,111420.0,0.15232]
[1756894117197,0.17950098,111420.0,111410.0,0.069]
[1756894117411,1.0081508,111420.0,111410.0,0.22132]
[1756894118663,1.0081508,111420.0,111410.0,0.40083709]
[1756894118986,0.59639089,111420.0,111410.0,0.40083709]
[1756894119188,1.0081508,111420.0,111410.0,0.40083709]
[1756894119401,0.59639089,111420.0,111410.0,0.40083709]
[1756894120163,0.59639089,111420.0,111410.0,0.40183709]
[1756894120366,1.0081508,111420.0,111410.0,0.22232]
[1756894120878,1.0081508,111420.0,111410.0,0.40183709]
[1756894121319,0.59639089,111420.0,111410.0,0.40183709]
[1756894121534,0.18463098,111420.0,111410.0,0.40183709]
[1756894121750,0.59639089,111420.0,111410.0,0.40183709]
[1756894123855,0.59639089,111420.0,111410.0,0.22232]
[1756894124173,1.0081508,111420.0,111410.0,0.22232]
[1756894126640,1.0081508,111420.0,111410.0,0.40183709]
[1756894127988,0.20946288,111430.0,111410.0,0.40698709]
[1756894128192,0.43878792,111430.0,111420.0,0.17950098]
[1756894128397,0.59640147,111430.0,111420.0,0.17950098]
[1756894128590,0.59640147,111430.0,111410.0,0.40183709]
[1756894128797,0.41175991,111420.0,111410.0,0.40493709]
[1756894129020,0.41175991,111420.0,111410.0,0.40698709]
[1756894129225,0.41175991,111420.0,111410.0,0.49890308]
[1756894129846,0.41175991,111420.0,111410.0,0.49790308]
[1756894130151,0.59129342,111430.0,111420.0,0.17950098]
[1756894130352,0.59129342,111430.0,111420.0,0.18155098]
[1756894130552,0.59345342,111430.0,111420.0,0.18465098]
[1756894131045,0.18169351,111430.0,111420.0,0.18465098]
[1756894131251,0.59640342,111430.0,111420.0,0.00205]
[1756894131456,0.59640342,111430.0,111420.0,0.18255098]
[1756894131661,0.59345342,111430.0,111420.0,0.18565098]
[1756894132688,0.59345342,111430.0,111420.0,0.00305]
[1756894133107,0.59345342,111430.0,111420.0,0.18255098]
[1756894133940,0.18169351,111430.0,111420.0,0.18255098]
[1756894134185,0.59345342,111430.0,111420.0,0.18255098]
[1756894134825,0.4118066,111430.0,111420.0,0.18565098]
[1756894135032,0.59129147,111430.0,111420.0,0.18565098]
[1756894135680,0.4118066,111430.0,111420.0,0.18565098]
[1756894138226,4.669e-05,111430.0,111420.0,0.27756697]
[1756894138505,4.669e-05,111430.0,111420.0,1.02932688]
[1756894138739,4.669e-05,111430.0,111420.0,0.64454134]
[1756894138945,4.669e-05,111430.0,111420.0,1.05630125]
[1756894140375,4.669e-05,111430.0,111420.0,0.64454134]
[1756894140581,4.669e-05,111430.0,111420.0,0.79678134]
[1756894141253,4.669e-05,111430.0,111420.0,1.20854125]
[1756894142691,4.669e-05,111430.0,111420.0,1.62030116]
[1756894143306,4.669e-05,111430.0,111420.0,1.20854125]
[1756894143526,4.669e-05,111430.0,111420.0,1.64123998]
[1756894143743,6.69e-06,111430.0,111420.0,1.74502875]
[1756894144324,6.69e-06,111430.0,111420.0,1.74402875]
[1756894144708,6.69e-06,111430.0,111420.0,1.75002875]
[1756894144911,6.69e-06,111430.0,111420.0,2.15002875]
[1756894145089,6.69e-06,111430.0,111420.0,2.14998875]
[1756894145863,6.69e-06,111430.0,111420.0,2.15398875]
[1756894146361,6.69e-06,111430.0,111420.0,2.07390998]
[1756894147281,6.69e-06,111430.0,111420.0,2.15398875]
[1756894148418,6.69e-06,111430.0,111420.0,2.07390998]
[1756894150817,6.69e-06,111430.0,111420.0,2.05019998]
[1756894153772,6.69e-06,111430.0,111420.0,1.89799998]
[1756894153975,6.69e-06,111430.0,111420.0,2.05015998]
[1756894156887,6.69e-06,111430.0,111420.0,1.89799998]
[1756894157101,6.69e-06,111430.0,111420.0,2.05011998]
[1756894159560,6.69e-06,111430.0,111420.0,1.07448016]
[1756894159778,0.00207669,111430.0,111420.0,2.05011998]
[1756894160079,0.00207669,111430.0,111420.0,1.22660016]
[1756894160290,6.69e-06,111430.0,111420.0,2.05011998]
[1756894163429,0.00309,111440.0,111430.0,0.51948487]
[1756894163650,0.00309,111440.0,111430.0,1.17528077]
[1756894163886,0.00516,111440.0,111430.0,1.17528077]
[1756894164091,0.00516,111440.0,111430.0,1.20225091]
[1756894164510,0.00516,111440.0,111430.0,0.638371]
[1756894164727,0.00516,111440.0,111430.0,1.20221091]
[1756894164936,0.00516,111440.0,111430.0,1.20621091]
[1756894165493,0.00516,111440.0,111430.0,1.20819091]
[1756894165924,0.00207,111440.0,111430.0,1.20819091]
[1756894166054,0.00207,111440.0,111430.0,1.21119091]
[1756894168401,0.00207,111440.0,111430.0,1.21434091]
[1756894169540,0.00207,111440.0,111430.0,0.799431]
[1756894169693,0.00516,111440.0,111430.0,0.799431]
[1756894170102,0.00207,111440.0,111430.0,0.802581]
[1756894170483,0.00207,111440.0,111430.0,0.650501]
[1756894170680,0.00207,111440.0,111430.0,0.645371]
[1756894170886,0.55405208,111440.0,111430.0,0.797411]
[1756894171108,0.73352085,111440.0,111430.0,0.457411]
[1756894171772,0.73352085,111440.0,111430.0,0.450411]
[1756894172194,0.73352085,111440.0,111430.0,0.455411]
[1756894173660,0.18462877,111440.0,111430.0,0.455411]
[1756894173861,0.73352085,111440.0,111430.0,0.455411]
[1756894176063,0.73352085,111440.0,111430.0,0.03197014]
[1756894176275,0.73352085,111440.0,111430.0,0.15704]
[1756894176889,0.73352085,111440.0,111430.0,0.15504]
[1756894177095,1.28241293,111440.0,111430.0,0.15304]
[1756894177500,1.28241293,111440.0,111430.0,0.15504]
[1756894177501,1.30938947,111440.0,111430.0,0.15504]
[1756894178146,1.30938947,111440.0,111430.0,0.15304]
[1756894178358,1.28241293,111440.0,111430.0,0.15304]
[1756894178566,1.28241293,111440.0,111430.0,0.15204]
[1756894180586,0.17950098,111420.0,111410.0,0.59749294]
[1756894180786,0.73352306,111420.0,111410.0,0.84145562]
[1756894181050,0.73352306,111420.0,111410.0,0.84341562]
[1756894181241,0.73035306,111420.0,111410.0,0.84341562]
[1756894182153,0.73035306,111420.0,111410.0,0.84641562]
[1756894182567,0.55085208,111420.0,111410.0,0.84841562]
[1756894182773,0.55085208,111420.0,111410.0,0.85164562]
[1756894182917,0.73035306,111420.0,111410.0,0.85164562]
[1756894183349,0.18266848,111430.0,111420.0,0.17950098]
[1756894183551,0.17949848,111430.0,111420.0,0.18469098]
[1756894183772,0.17948487,111430.0,111420.0,0.18469098]
[1756894183991,0.73033695,111430.0,111420.0,0.18469098]
[1756894184206,0.73033695,111430.0,111420.0,0.18146098]
[1756894184612,0.73350695,111430.0,111420.0,0.18150098]
[1756894184927,0.73350695,111430.0,111420.0,0.002]
[1756894185138,0.73350695,111430.0,111420.0,0.154]
[1756894185995,0.73350695,111430.0,111420.0,0.155]
[1756894186219,0.73350695,111430.0,111420.0,0.33450098]
[1756894187224,0.73350695,111430.0,111420.0,0.155]
[1756894187364,0.73350695,111430.0,111420.0,0.33450098]
[1756894187997,0.73350695,111430.0,111420.0,0.155]
[1756894188539,0.73350695,111430.0,111420.0,0.18250098]
[1756894188749,0.73350695,111430.0,111420.0,0.33450098]
[1756894190918,0.54889208,111430.0,111420.0,0.33969098]
[1756894191514,0.73033695,111430.0,111420.0,0.33969098]
[1756894192206,0.73033695,111430.0,111420.0,0.33646098]
[1756894193214,0.73033695,111430.0,111420.0,0.33450098]
[1756894193579,0.73033695,111430.0,111420.0,0.33646098]
[1756894194927,0.55085208,111430.0,111420.0,0.33646098]
[1756894195137,0.55085208,111430.0,111420.0,0.33969098]
[1756894195544,0.55085208,111430.0,111420.0,0.33646098]
[1756894196948,0.73033695,111430.0,111420.0,0.33646098]
[1756894197173,0.55085208,111430.0,111420.0,0.33646098]
[1756894197998,0.73033695,111430.0,111420.0,0.33646098]
[1756894198207,0.73350695,111430.0,111420.0,0.33450098]
[1756894198816,0.55085208,111430.0,111420.0,0.33646098]
[1756894198978,0.73033695,111430.0,111420.0,0.33646098]
[1756894199217,0.17946877,111440.0,111430.0,0.17948487]
[1756894199377,0.73032085,111440.0,111430.0,0.17948487]
[1756894199577,0.73349085,111440.0,111430.0,0.17948487]
[1756894199775,0.73349085,111440.0,111420.0,0.42964697]
[1756894200094,0.54889208,111430.0,111420.0,0.42964697]
[1756894200458,0.55085208,111430.0,111420.0,0.42960697]
[1756894200907,0.54889208,111430.0,111420.0,0.42960697]
[1756894201127,0.21857192,111450.0,111430.0,0.17948487]
[1756894201345,0.54889208,111440.0,111430.0,0.17948487]
[1756894201563,0.55085208,111440.0,111430.0,0.33463487]
[1756894201789,0.55085208,111440.0,111430.0,0.33659487]
[1756894203271,0.55085208,111440.0,111430.0,0.33759487]
[1756894203477,0.00196,111440.0,111430.0,0.33759487]
[1756894203684,0.55085208,111440.0,111430.0,0.33759487]
[1756894204892,0.55085208,111440.0,111430.0,0.40659487]
[1756894206751,0.18262275,111450.0,111440.0,0.17946877]
[1756894206965,0.19157883,111460.0,111450.0,0.17945266]
[1756894207174,0.74243091,111460.0,111450.0,0.15188]
[1756894208235,0.7424776,111460.0,111450.0,0.15188]
[1756894208442,0.7444776,111460.0,111450.0,0.15188]
[1756894208866,0.7454776,111460.0,111450.0,0.15188]
[1756894209121,0.19658552,111460.0,111450.0,0.33133266]
[1756894209374,0.7424776,111460.0,111450.0,0.33133266]
[1756894211867,0.7424776,111460.0,111450.0,0.15188]
[1756894212642,0.7424776,111460.0,111450.0,0.33133266]
[1756894212842,0.19358552,111460.0,111450.0,0.33133266]
[1756894213054,0.54893877,111460.0,111450.0,0.33659266]
[1756894213257,0.72837533,111460.0,111450.0,0.33659266]
[1756894214119,0.73044533,111460.0,111450.0,0.33659266]
[1756894214759,0.73044533,111460.0,111450.0,0.33347266]
[1756894215792,0.73044533,111460.0,111450.0,0.33659266]
[1756894216894,0.73044533,111460.0,111450.0,0.33347266]
[1756894217886,0.18155325,111460.0,111450.0,0.33347266]
[1756894218094,0.73044533,111460.0,111450.0,0.33347266]
[1756894220651,0.73356533,111460.0,111450.0,0.33133266]
[1756894225159,0.73356533,111460.0,111440.0,0.27450476]
[1756894225367,0.72834474,111450.0,111440.0,0.27450476]
[1756894225574,0.73041474,111450.0,111440.0,0.42840476]
[1756894225948,0.55096208,111450.0,111440.0,0.42840476]
[1756894226175,0.73041474,111450.0,111440.0,0.27664476]
[1756894226480,0.73353474,111450.0,111440.0,0.42314476]
[1756894226680,0.73353474,111450.0,111440.0,0.42414476]
[1756894228752,0.73041474,111450.0,111440.0,0.42728476]
[1756894229093,0.73041474,111450.0,111440.0,0.42628476]
[1756894229302,0.73041474,111450.0,111440.0,0.42528476]
[1756894229888,0.73041474,111450.0,111440.0,0.42628476]
[1756894230225,0.73041474,111450.0,111440.0,0.42728476]
[1756894230477,0.73353474,111450.0,111440.0,0.09391599]
[1756894230690,0.73353474,111450.0,111440.0,0.002]
[1756894230917,0.73353474,111450.0,111440.0,0.15372]
[1756894231556,1.00834498,111450.0,111440.0,0.15272]
[1756894231763,1.00834498,111450.0,111440.0,0.15172]
[1756894233231,0.17946877,111440.0,111430.0,0.069]
[1756894233448,1.00836109,111440.0,111430.0,0.22072]
[1756894234954,1.00836109,111440.0,111430.0,0.22272]
[1756894235152,1.00836109,111440.0,111430.0,0.071]
[1756894235409,1.42021225,111440.0,111430.0,0.002]
[1756894235845,1.57193225,111440.0,111430.0,0.15372]
[1756894236260,1.57193225,111440.0,111430.0,0.15272]
[1756894236467,1.57193225,111440.0,111430.0,0.15172]
[1756894236818,1.59891065,111440.0,111430.0,0.15172]
[1756894237657,0.17950098,111420.0,111410.0,0.25749118]
[1756894237851,0.17950098,111420.0,111410.0,0.50638717]
[1756894237852,0.41185116,111420.0,111410.0,0.50638717]
[1756894238705,0.59135214,111420.0,111410.0,0.50638717]
[1756894238913,0.41185116,111420.0,111410.0,0.50643386]
[1756894239115,0.41185116,111420.0,111410.0,0.50743386]
[1756894239316,0.41185116,111420.0,111410.0,0.50843386]
[1756894241276,1.0084133,111420.0,111410.0,0.25056202]
[1756894241503,1.0052833,111420.0,111410.0,0.40424202]
[1756894241666,1.0052833,111420.0,111410.0,0.40720202]
[1756894242925,1.0032033,111420.0,111410.0,0.40720202]
[1756894243851,0.20647978,111430.0,111420.0,0.17950098]
[1756894244064,0.2064652,111430.0,111420.0,0.18442098]
[1756894244276,0.41185116,111430.0,111420.0,0.27633697]
[1756894244686,0.00208,111430.0,111420.0,0.27633697]
[1756894244906,0.41185116,111430.0,111420.0,0.27633697]
[1756894245825,0.59133603,111430.0,111420.0,0.27633697]
[1756894246230,0.59341603,111430.0,111420.0,0.09683599]
[1756894246370,0.59654603,111430.0,111420.0,0.24459599]
[1756894246571,0.59654603,111430.0,111420.0,0.001]
[1756894246792,1.00839719,111430.0,111420.0,0.15368]
[1756894247670,1.00839719,111430.0,111420.0,0.15268]
[1756894248477,1.00839719,111430.0,111420.0,0.15168]
[1756894248686,1.00839719,111430.0,111420.0,0.33118098]
[1756894248892,1.00839719,111430.0,111420.0,0.15168]
[1756894249120,1.00839719,111430.0,111410.0,0.26049787]
[1756894249292,0.18469487,111430.0,111420.0,0.15168]
[1756894250518,1.00839719,111430.0,111420.0,0.15168]
[1756894252471,0.17950098,111420.0,111410.0,0.25753787]
[1756894252682,1.0052833,111420.0,111410.0,0.41117787]
[1756894252899,1.0084133,111420.0,111410.0,0.40921787]
[1756894253074,1.0052833,111420.0,111410.0,0.41117787]
[1756894253207,1.01870804,111420.0,111410.0,0.41117787]
[1756894253415,1.01870804,111420.0,111410.0,0.41113787]
[1756894253636,1.01870804,111420.0,111410.0,0.25753787]
[1756894253867,1.0052833,111420.0,111410.0,0.41113787]
[1756894254447,0.41185116,111420.0,111410.0,0.50601386]
[1756894254767,0.17948674,111430.0,111420.0,0.17950098]
[1756894255131,0.18156674,111430.0,111420.0,0.18146098]
[1756894256125,0.5934179,111430.0,111420.0,0.33310098]
[1756894256532,0.5934179,111430.0,111420.0,0.18442098]
[1756894256744,0.60678843,111430.0,111420.0,0.33606098]
[1756894256947,0.60678843,111430.0,111420.0,0.33310098]
[1756894257895,0.5934179,111430.0,111420.0,0.33310098]
[1756894259507,0.41185116,111430.0,111420.0,0.33606098]
[1756894259720,0.17948487,111430.0,111420.0,0.33606098]
[1756894259991,0.59133603,111430.0,111420.0,0.33606098]
[1756894262048,0.6043022,111430.0,111420.0,0.33606098]
[1756894262255,0.6063822,111430.0,111420.0,0.33606098]
[1756894262465,0.6043022,111430.0,111420.0,0.33606098]
[1756894264760,0.6063822,111430.0,111420.0,0.33606098]
[1756894265301,0.6063822,111430.0,111420.0,0.1536]
[1756894265482,0.6063822,111430.0,111420.0,0.33310098]
[1756894265831,1.02136336,111430.0,111420.0,0.15164]
[1756894266451,0.17950098,111420.0,111410.0,0.35241386]
[1756894266664,0.82578232,111420.0,111410.0,0.50597386]
[1756894267799,0.82578232,111420.0,111410.0,0.50697386]
[1756894269225,0.82578232,111420.0,111410.0,0.50797386]
[1756894269928,0.82370232,111420.0,111410.0,0.50797386]
[1756894270568,0.41185116,111420.0,111410.0,0.50797386]
[1756894270770,0.82370232,111420.0,111410.0,0.50797386]
[1756894273695,0.82566232,111420.0,111410.0,0.50797386]
[1756894274722,0.82370232,111420.0,111410.0,0.50797386]
[1756894276104,0.82566232,111420.0,111410.0,0.50797386]
[1756894276723,0.82566232,111420.0,111410.0,0.35341386]
[1756894276928,0.82566232,111420.0,111410.0,0.50493386]
[1756894277131,0.82890232,111420.0,111410.0,0.50297386]
[1756894277842,0.82890232,111420.0,111410.0,0.50197386]
[1756894278525,0.82890232,111420.0,111410.0,0.50097386]
[1756894278878,0.82566232,111420.0,111410.0,0.50309386]
[1756894279740,0.82566232,111420.0,111410.0,0.50609386]
[1756894279938,0.41185116,111420.0,111410.0,0.50609386]
[1756894280175,0.63051233,111440.0,111420.0,0.17950098]
[1756894280386,0.02697897,111440.0,111430.0,0.33612487]
[1756894280605,0.41185116,111440.0,111430.0,0.33612487]
[1756894281232,0.41381116,111440.0,111430.0,0.33612487]
[1756894281434,0.82566232,111440.0,111430.0,0.33612487]
[1756894281610,1.00513109,111440.0,111430.0,0.33312487]
[1756894281773,1.01013109,111440.0,111430.0,0.33312487]
[1756894281976,1.02644685,111440.0,111430.0,0.17948487]
[1756894282181,1.02644685,111440.0,111430.0,0.33100487]
[1756894283411,1.02644685,111440.0,111420.0,0.30736751]
[1756894283653,0.41185116,111430.0,111420.0,0.31036751]
[1756894283853,0.41185116,111430.0,111420.0,0.46188751]
[1756894284085,0.41185116,111430.0,111420.0,0.46400751]
[1756894285546,0.41285116,111430.0,111420.0,0.46400751]
[1756894285696,0.41485116,111430.0,111420.0,0.46400751]
[1756894287490,0.41485116,111430.0,111420.0,0.46396751]
[1756894288641,0.41681116,111430.0,111420.0,0.46396751]
[1756894290586,0.41485116,111430.0,111420.0,0.46396751]
[1756894293589,0.55406194,111430.0,111420.0,0.46396751]
[1756894297255,0.55406194,111430.0,111420.0,0.30948751]
[1756894297468,0.73678681,111430.0,111420.0,0.11889149]
[1756894297680,0.73678681,111430.0,111420.0,0.1514]
[1756894303823,0.18768487,111430.0,111420.0,0.1514]
[1756894303945,0.73678681,111430.0,111420.0,0.1514]
[1756894304638,0.73678681,111430.0,111420.0,0.33090098]
[1756894305696,0.73678681,111430.0,111420.0,0.1514]
[1756894305905,0.55406194,111430.0,111420.0,0.33298098]
[1756894306135,0.55210194,111430.0,111420.0,0.33619098]
[1756894306963,0.003,111430.0,111420.0,0.42810697]
[1756894307312,0.003,111430.0,111420.0,0.45508249]
[1756894310751,0.003,111430.0,111420.0,1.00418443]
[1756894312911,0.003,111430.0,111420.0,1.34418443]
[1756894313942,0.00050644,111430.0,111420.0,1.34418443]
[1756894314258,0.00050644,111430.0,111420.0,1.4242632]
[1756894314469,0.19153121,111460.0,111450.0,0.17945266]
[1756894314669,0.19153121,111460.0,111450.0,0.33077266]
[1756894314809,0.19358121,111460.0,111450.0,0.33077266]
[1756894315576,0.19358121,111460.0,111450.0,0.33285266]
[1756894315793,0.1966979,111460.0,111450.0,0.33285266]
[1756894316356,0.1946279,111460.0,111450.0,0.33285266]
[1756894316655,0.18253325,111460.0,111450.0,0.33606266]
[1756894316889,0.18353325,111460.0,111450.0,0.33606266]
[1756894317414,0.18660325,111460.0,111450.0,0.33077266]
[1756894317549,0.19913589,111460.0,111440.0,0.27863595]
[1756894317759,0.19913589,111460.0,111450.0,0.33077266]
[1756894318352,0.19813589,111460.0,111450.0,0.33077266]
[1756894318763,0.74723783,111460.0,111450.0,0.33077266]
[1756894320001,0.74723783,111460.0,111450.0,0.15128]
[1756894320227,0.74723783,111460.0,111450.0,0.33073266]
[1756894320410,0.74823783,111460.0,111440.0,0.37055194]
[1756894320543,0.74823783,111460.0,111450.0,0.33073266]
[1756894321156,0.74823783,111460.0,111450.0,0.15128]
[1756894321355,0.74723783,111460.0,111450.0,0.15128]
[1756894321615,0.74823783,111460.0,111450.0,0.15128]
[1756894322139,0.74823783,111460.0,111450.0,0.33073266]
[1756894322287,0.17945266,111450.0,111440.0,0.36734194]
[1756894322482,0.7285546,111450.0,111440.0,0.36734194]
[1756894322724,0.7336746,111450.0,111440.0,0.51863654]
[1756894323320,0.18457266,111450.0,111440.0,0.51863654]
[1756894323496,0.7336746,111450.0,111440.0,0.51863654]
[1756894323753,0.19608589,111460.0,111450.0,0.17945266]
[1756894323978,0.00205,111450.0,111440.0,0.51863654]
[1756894324188,0.00512,111450.0,111440.0,0.51863654]
[1756894324429,0.7336746,111450.0,111440.0,0.51863654]
[1756894324850,0.18457266,111450.0,111440.0,0.49166476]
[1756894325487,0.7336746,111450.0,111440.0,0.49166476]
[1756894326512,0.00512,111450.0,111440.0,0.49166476]
[1756894326739,0.74418783,111460.0,111450.0,0.17945266]
[1756894326960,0.74623783,111460.0,111450.0,0.17945266]
[1756894327522,0.74623783,111460.0,111440.0,0.49487476]
[1756894328315,0.74723783,111460.0,111440.0,0.49487476]
[1756894329123,0.7317346,111450.0,111440.0,0.24846877]
[1756894329385,0.7337846,111450.0,111440.0,0.39970877]
[1756894330460,0.7306046,111450.0,111440.0,0.40168877]
[1756894331144,0.18150266,111450.0,111440.0,0.40168877]
[1756894332853,0.00205,111450.0,111440.0,0.40466877]
[1756894333088,0.19201589,111460.0,111450.0,0.17945266]
[1756894333293,0.19406589,111460.0,111450.0,0.18143266]
[1756894333875,0.19406589,111460.0,111450.0,0.18441266]
[1756894334084,0.17948325,111460.0,111450.0,0.18441266]
[1756894334288,4.669e-05,111460.0,111450.0,0.18441266]
[1756894334495,0.00104669,111460.0,111450.0,0.18441266]
[1756894334741,0.00204669,111460.0,111450.0,0.18441266]
[1756894335097,0.18148325,111460.0,111450.0,0.18441266]
[1756894336802,0.00204669,111460.0,111450.0,0.18441266]
[1756894339940,0.18148325,111460.0,111450.0,0.18441266]
[1756894340776,0.00204669,111460.0,111450.0,0.18441266]
[1756894341914,0.00204669,111460.0,111450.0,0.27632865]
[1756894343759,0.00204669,111460.0,111450.0,0.42752865]
[1756894344269,0.18148325,111460.0,111450.0,0.27632865]
[1756894344493,0.18353325,111460.0,111450.0,0.42748865]
[1756894344696,0.18353325,111460.0,111450.0,0.42450865]
[1756894345292,0.18353325,111460.0,111450.0,0.42748865]
[1756894348551,0.18309325,111460.0,111450.0,0.42748865]
[1756894348753,0.00365669,111460.0,111450.0,0.42748865]
[1756894349371,0.18309325,111460.0,111450.0,0.42748865]
[1756894353640,0.59469392,111460.0,111450.0,0.42748865]
[1756894355327,0.59469392,111460.0,111450.0,0.27632865]
[1756894355550,0.18104325,111460.0,111450.0,0.42744865]
[1756894355774,0.41320736,111460.0,111450.0,0.42744865]
[1756894356460,0.00160669,111460.0,111450.0,0.42744865]
[1756894358433,0.18309325,111460.0,111450.0,0.42744865]